bitfinex/quotes_SOLUSD_20250315
["timestamp","ask_amount","ask_price","bid_price","bid_amount"]
[1742045599912,13.02633512,135.3,135.29,0.5]
[1742045600118,13.16849669,135.31,135.29,0.5]
[1742045601232,13.16849669,135.31,135.3,0.5]
[1742045603505,33.02633512,135.32,135.31,0.5]
[1742045604704,20.14216157,135.32,135.31,0.5]
[1742045605118,0.14216157,135.31,135.3,0.063]
[1742045605320,0.28432314,135.3,135.28,0.063]
[1742045605616,13.16849669,135.29,135.28,0.063]
[1742045605796,13.16849669,135.29,135.28,0.563]
[1742045606219,13.16849669,135.29,135.28,0.063]
[1742045607406,20.70215826,135.29,135.28,0.063]
[1742045607614,13.31065826,135.29,135.28,0.063]
[1742045609119,20.70215826,135.29,135.28,0.063]
[1742045609523,20.70215826,135.29,135.28,0.563]
[1742045609899,20.70215826,135.29,135.28,0.063]
[1742045610225,20.70215826,135.29,135.28,0.563]
[1742045610725,20.70215826,135.29,135.28,0.063]
[1742045611810,39.35180712,135.29,135.28,0.063]
[1742045612016,18.933972,135.28,135.27,0.063]
[1742045612221,13.31065826,135.28,135.27,0.063]
[1742045612425,20.70265826,135.28,135.27,0.063]
[1742045612925,13.31065826,135.28,135.27,0.063]
[1742045613909,20.70265826,135.28,135.27,0.063]
[1742045616013,13.31065826,135.28,135.27,0.063]
[1742045617305,13.16849669,135.29,135.28,0.5]
[1742045620410,20.0,135.3,135.29,0.5]
[1742045620610,13.02633512,135.31,135.3,0.5]
[1742045620833,13.16849669,135.32,135.31,0.5]
[1742045622524,32.7958995,135.35,135.27,19.49633512]
[1742045622525,13.02633512,135.34,135.32,0.5]
[1742045623035,13.16849669,135.34,135.33,0.5]
[1742045623322,13.02633512,135.34,135.32,0.5]
[1742045623527,13.16849669,135.34,135.33,0.5]
[1742045624331,13.02633512,135.34,135.32,0.5]
[1742045624509,20.14216157,135.34,135.33,0.5]
[1742045625836,20.0,135.33,135.32,0.5]
[1742045627130,33.02633512,135.33,135.32,0.5]
[1742045629116,33.05633512,135.34,135.33,0.5]
[1742045629831,0.03,135.34,135.33,7.8893]
[1742045633137,0.03,135.34,135.33,20.91563512]
[1742045633340,0.03,135.34,135.33,7.8893]
[1742045634042,0.03,135.34,135.33,20.91563512]
[1742045634239,13.05633512,135.38,135.33,40.89123512]
[1742045634240,0.03,135.38,135.33,40.89123512]
[1742045634424,0.03,135.38,135.37,0.5]
[1742045634936,0.03,135.38,135.37,6.692]
[1742045635750,0.03,135.38,135.37,14.0791]
[1742045637947,0.03,135.38,135.37,28.60773512]
[1742045638158,0.03,135.38,135.37,15.5814]
[1742045642347,0.03,135.38,135.37,28.60773512]
[1742045644062,0.03,135.38,135.37,48.36507059]
[1742045644256,0.03,135.38,135.37,47.25738398]
[1742045644764,0.03,135.4,135.39,19.14964886]
[1742045644954,0.03,135.44,135.43,2.1108]
[1742045645257,0.03,135.44,135.43,15.13713512]
[1742045646154,0.03,135.44,135.43,22.52093512]
[1742045647740,0.03,135.44,135.43,9.4946]
[1742045648749,13.05633512,135.44,135.43,0.5]
[1742045649552,13.34065826,135.44,135.41,0.5]
[1742045649753,13.02633512,135.42,135.41,0.5]
[1742045652748,13.02633512,135.43,135.41,0.5]
[1742045653254,0.03,135.44,135.43,0.5]
[1742045653433,0.03,135.44,135.43,19.90633512]
[1742045653632,0.03,135.44,135.43,27.96333512]
[1742045654344,0.03,135.44,135.43,8.4908]
[1742045654552,0.03,135.44,135.43,28.82286253]
[1742045654735,0.03,135.44,135.43,36.20666253]
[1742045655055,0.03,135.44,135.43,54.85631139]
[1742045656947,0.03,135.44,135.43,55.96332974]
[1742045658855,0.03,135.44,135.43,134.28619218]
[1742045660161,0.03,135.44,135.43,133.17917383]
[1742045661743,0.03,135.46,135.45,19.14964886]
[1742045661947,0.03,135.46,135.45,39.48171139]
[1742045662761,0.0001,135.48,135.47,25.53594886]
[1742045662963,0.0001,135.48,135.47,133.19277383]
[1742045664866,0.03,135.5,135.49,19.14964886]
[1742045665158,0.03,135.5,135.49,53.24231139]
[1742045665342,0.03,135.5,135.49,14.2606]
[1742045665537,0.03,135.5,135.49,34.59266253]
[1742045665745,0.03,135.5,135.49,53.24231139]
[1742045667565,0.0001,135.5,135.49,131.56517383]
[1742045667947,0.0001,135.5,135.49,131.84949697]
[1742045668154,0.0001,135.5,135.49,132.95592762]
[1742045668460,0.0001,135.54,135.51,25.820272]
[1742045668645,0.0001,135.54,135.53,20.83206253]
[1742045669257,0.0001,135.54,135.53,28.21046253]
[1742045669751,0.0001,135.54,135.53,47.14443453]
[1742045669962,0.0001,135.54,135.53,125.46729697]
[1742045671159,0.0001,135.54,135.53,125.18297383]
[1742045674771,0.0001,135.55,135.54,0.5]
[1742045674956,0.0001,135.55,135.54,106.64103286]
[1742045675357,0.03,135.6,135.59,0.5]
[1742045675558,0.03,135.6,135.59,34.58716253]
[1742045676277,0.03,135.6,135.59,27.23791977]
[1742045677176,0.03,135.6,135.59,14.2551]
[1742045677674,0.03,135.6,135.59,27.23791977]
[1742045678275,0.03,135.6,135.59,34.54164514]
[1742045682360,0.03,135.6,135.59,0.5]
[1742045682666,20.31654514,135.6,135.59,0.5]
[1742045685477,0.03,135.6,135.59,0.5]
[1742045687183,0.03,135.6,135.59,7.8751]
[1742045687389,0.03,135.6,135.59,0.5]
[1742045687591,20.31654514,135.6,135.59,0.5]
[1742045688482,20.31654514,135.6,135.56,6.38]
[1742045688483,20.31654514,135.6,135.58,0.5]
[1742045688660,20.31654514,135.6,135.59,0.5]
[1742045694182,0.03,135.6,135.59,0.5]
[1742045694375,40.31654514,135.6,135.58,0.5]
[1742045694574,40.31654514,135.6,135.59,0.5]
[1742045695173,40.31654514,135.6,135.58,0.5]
[1742045695364,20.28654514,135.59,135.58,0.5]
[1742045695565,0.03,135.6,135.58,0.5]
[1742045695566,20.31654514,135.6,135.58,0.5]
[1742045695761,20.31654514,135.6,135.59,0.5]
[1742045695966,40.31654514,135.6,135.59,0.5]
[1742045696774,20.03,135.6,135.59,0.5]
[1742045697284,20.03,135.6,135.59,7.8751]
[1742045697688,20.03,135.6,135.59,0.5]
[1742045698887,20.03,135.6,135.59,7.8751]
[1742045699670,0.03,135.6,135.59,7.8751]
[1742045704394,0.03,135.6,135.59,14.2551]
[1742045704792,0.03,135.6,135.59,6.88]
[1742045705472,13.01757659,135.6,135.59,0.5]
[1742045705678,0.03,135.6,135.59,0.5]
[1742045706970,33.15973816,135.6,135.59,0.5]
[1742045707170,0.28432314,135.59,135.56,0.5]
[1742045707495,32.98757659,135.57,135.55,0.5]
[1742045707693,20.0,135.56,135.55,0.5]
[1742045708471,12.98757659,135.58,135.56,0.5]
[1742045708695,12.98757659,135.58,135.57,0.5]
[1742045710603,20.36327659,135.58,135.57,0.5]
[1742045712294,20.36327659,135.58,135.56,0.5]
[1742045712602,12.98757659,135.57,135.55,0.563]
[1742045712800,12.98757659,135.56,135.55,0.063]
[1742045713401,12.98757659,135.56,135.55,0.563]
[1742045713790,12.98757659,135.56,135.55,0.063]
[1742045714398,20.64869973,135.56,135.55,0.063]
[1742045716607,12.98757659,135.56,135.55,0.563]
[1742045718005,18.67964886,135.6,135.55,0.563]
[1742045718006,12.98757659,135.57,135.55,0.563]
[1742045718204,12.98757659,135.59,135.58,0.5]
[1742045718406,13.30189973,135.6,135.59,0.5]
[1742045718600,13.01757659,135.6,135.59,0.5]
[1742045720310,40.3319589,135.6,135.59,0.5]
[1742045722081,20.03,135.6,135.59,0.5]
[1742045722289,0.03,135.6,135.59,0.5]
[1742045722487,0.03,135.6,135.59,7.8751]
[1742045722688,0.03,135.6,135.59,28.1770589]
[1742045722901,0.03,135.6,135.59,29.7659589]
[1742045723098,0.03,135.6,135.59,9.464]
[1742045724610,0.03,135.6,135.59,0.5]
[1742045724808,0.03,135.6,135.59,7.8751]
[1742045727406,0.03,135.6,135.59,7.8751]
[1742045730510,0.03,135.6,135.59,0.5]
[1742045730703,20.3319589,135.6,135.59,0.5]
[1742045733704,20.3319589,135.6,135.58,0.5]
[1742045733904,40.3019589,135.59,135.58,0.5]
[1742045735207,20.0,135.59,135.58,0.5]
[1742045735408,20.0,135.59,135.58,7.8757]
[1742045736226,0.03,135.6,135.59,0.5]
[1742045738506,0.03,135.6,135.59,7.8751]
[1742045745434,0.03,135.6,135.59,0.5]
[1742045746130,33.02028299,135.6,135.59,0.5]
[1742045747527,0.14216157,135.59,135.57,0.5]
[1742045747824,13.13244456,135.58,135.57,0.5]
[1742045749223,13.13244456,135.58,135.56,0.5]
[1742045749427,0.14216157,135.58,135.57,0.5]
[1742045749621,13.13244456,135.58,135.57,0.5]
[1742045749821,13.13244456,135.58,135.56,0.5]
[1742045750225,32.99028299,135.57,135.56,0.5]
[1742045750827,32.99028299,135.57,135.55,0.063]
[1742045750828,32.99028299,135.57,135.55,0.563]
[1742045751035,0.14216157,135.58,135.55,0.563]
[1742045751036,32.99028299,135.56,135.55,0.563]
[1742045751216,20.0,135.56,135.55,0.563]
[1742045751541,32.99028299,135.57,135.55,0.563]
[1742045751906,33.13244456,135.57,135.56,0.5]
[1742045755540,32.99028299,135.57,135.56,0.5]
[1742045756430,20.0,135.57,135.56,0.5]
[1742045757035,0.03,135.6,135.57,0.5]
[1742045757236,0.03,135.6,135.59,0.5]
[1742045757735,0.03,135.6,135.59,7.8751]
[1742045767937,0.03,135.6,135.59,0.5]
[1742045768138,13.16244456,135.6,135.59,0.5]
[1742045768719,0.03,135.6,135.59,0.5]
[1742045768920,20.03,135.6,135.59,0.5]
[1742045769430,0.03,135.6,135.59,0.5]
[1742045770346,0.03,135.6,135.59,7.8751]
[1742045772135,0.03,135.6,135.59,0.5]
[1742045772347,13.02028299,135.6,135.59,0.5]
[1742045773658,33.02028299,135.6,135.59,0.5]
[1742045781145,0.03,135.6,135.59,7.8751]
[1742045782745,0.03,135.6,135.59,0.5]
[1742045782941,0.03,135.6,135.59,7.8751]
[1742045789260,0.03,135.6,135.59,20.86538299]
[1742045789435,0.03,135.6,135.59,27.03868299]
[1742045790537,0.0001,135.6,135.59,27.03868299]
[1742045792660,0.0001,135.6,135.59,105.36154543]
[1742045792862,0.0001,135.6,135.59,124.01119429]
[1742045797074,0.0001,135.6,135.59,124.01119429]
[1742045798862,0.03,135.65,135.6,18.933972]
[1742045799043,0.03,135.65,135.64,20.86268299]
[1742045799240,0.03,135.65,135.64,27.24268299]
[1742045801559,0.03,135.65,135.64,33.32088299]
[1742045802350,0.0001,135.65,135.64,130.29339429]
[1742045803651,0.0001,135.65,135.64,130.79339429]
[1742045804341,0.0001,135.68,135.67,19.14964886]
[1742045804547,0.0001,135.68,135.67,93.36514543]
[1742045805060,0.0001,135.68,135.67,80.37486244]
[1742045805260,0.0001,135.68,135.67,93.36514543]
[1742045806270,0.0001,135.68,135.67,41.06273185]
[1742045807644,0.0001,135.68,135.67,22.41308299]
[1742045808863,0.0001,135.68,135.67,41.06273185]
[1742045809065,0.0001,135.68,135.67,119.38559429]
[1742045810167,0.03,135.74,135.73,0.5]
[1742045810372,0.0001,135.74,135.73,123.48909429]
[1742045810549,0.0001,135.74,135.73,175.45022625]
[1742045810748,0.0001,135.74,135.73,487.45022625]
[1742045810949,0.0001,135.74,135.73,435.48909429]
[1742045811370,0.0001,135.74,135.73,487.45022625]
[1742045811970,0.0001,135.74,135.73,435.48909429]
[1742045812172,0.0001,135.74,135.73,442.85659429]
[1742045812968,0.0001,135.74,135.73,112.20694543]
[1742045813151,0.0001,135.74,135.73,7.8675]
[1742045813968,0.0001,135.74,135.73,0.5]
[1742045814973,0.0001,135.74,135.73,7.8675]
[1742045815276,0.0001,135.74,135.73,20.85778299]
[1742045815479,0.0001,135.74,135.73,39.50743185]
[1742045815974,0.0001,135.74,135.73,351.50743185]
[1742045816375,0.0001,135.74,135.73,358.75597112]
[1742045816775,0.0001,135.74,135.73,360.30947112]
[1742045817080,0.0001,135.74,135.73,458.87115582]
[1742045817381,0.0001,135.74,135.73,459.37115582]
[1742045817678,0.0001,135.74,135.73,459.65547896]
[1742045817878,0.0001,135.74,135.73,147.65547896]
[1742045819481,0.0001,135.74,135.73,147.15547896]
[1742045819680,0.0001,135.74,135.73,126.63233356]
[1742045820181,0.0001,135.74,135.73,146.87115582]
[1742045820583,0.0001,135.74,135.73,147.15547896]
[1742045820765,0.0001,135.74,135.73,459.15547896]
[1742045821370,0.0001,135.74,135.73,459.65547896]
[1742045821784,0.0001,135.74,135.73,458.87115582]
[1742045821988,0.0001,135.74,135.73,146.87115582]
[1742045822174,0.0001,135.74,135.73,128.22150696]
[1742045822570,0.0001,135.74,135.73,107.9826847]
[1742045823077,0.0001,135.74,135.73,114.4026847]
[1742045823272,0.0001,135.74,135.73,34.52632226]
[1742045823471,0.0001,135.74,135.73,7.8675]
[1742045823684,0.0001,135.74,135.73,0.5]
[1742045823977,0.0001,135.74,135.73,7.8675]
[1742045826172,0.0001,135.74,135.73,0.5]
[1742045826566,0.0001,135.74,135.73,28.10632226]
[1742045828585,0.14216157,135.73,135.72,0.063]
[1742045828780,40.23882226,135.73,135.72,0.563]
[1742045828980,20.0,135.73,135.72,7.9311]
[1742045829393,20.0001,135.74,135.72,7.9311]
[1742045829595,20.0001,135.74,135.73,0.5]
[1742045830096,40.23892226,135.74,135.73,0.5]
[1742045831575,0.0001,135.74,135.73,0.5]
[1742045832592,0.0001,135.74,135.73,7.8675]
[1742045833476,0.0001,135.74,135.73,28.10632226]
[1742045834182,0.0001,135.74,135.73,106.4291847]
[1742045834393,2.1032958,135.79,135.78,0.5]
[1742045834572,2.1032958,135.79,135.78,27.21882226]
[1742045834776,2.1032958,135.79,135.78,34.93992226]
[1742045835102,2.1032958,135.79,135.78,346.93992226]
[1742045835301,2.1032958,135.79,135.78,27.21882226]
[1742045835989,2.1032958,135.79,135.78,34.58362226]
[1742045837300,9.58e-05,135.79,135.78,113.19080784]
[1742045837505,9.58e-05,135.79,135.78,112.9064847]
[1742045840906,9.58e-05,135.79,135.78,34.58362226]
[1742045842484,9.58e-05,135.79,135.78,14.3448]
[1742045843583,9.58e-05,135.79,135.78,6.98]
[1742045843785,9.58e-05,135.79,135.78,7.0]
[1742045843991,9.58e-05,135.79,135.78,0.5]
[1742045844384,20.23891806,135.79,135.78,0.5]
[1742045844594,20.5232412,135.79,135.76,0.5]
[1742045844783,20.23882226,135.77,135.76,0.5]
[1742045844979,20.23882226,135.78,135.77,0.5]
[1742045845600,20.23891806,135.79,135.78,0.5]
[1742045847002,9.58e-05,135.79,135.78,7.8648]
[1742045848087,20.0,135.77,135.76,0.5]
[1742045848286,40.5231454,135.77,135.76,0.5]
[1742045848808,40.23882226,135.77,135.76,0.5]
[1742045850201,40.5231454,135.77,135.76,0.5]
[1742045850403,47.8884454,135.77,135.76,0.5]
[1742045851509,40.5231454,135.77,135.76,0.5]
[1742045852003,47.8884454,135.77,135.76,0.5]
[1742045854914,0.28432314,135.76,135.75,0.563]
[1742045855214,20.5231454,135.76,135.75,0.563]
[1742045856613,27.8890454,135.76,135.75,0.563]
[1742045857111,27.8890454,135.76,135.75,0.063]
[1742045857311,27.8890454,135.76,135.75,0.563]
[1742045858616,46.53869426,135.76,135.75,0.563]
[1742045859410,20.28432314,135.73,135.72,0.063]
[1742045859603,40.5231454,135.73,135.72,0.063]
[1742045860509,79.41161652,135.73,135.72,0.063]
[1742045861393,86.77911652,135.73,135.72,0.063]
[1742045866015,79.41161652,135.73,135.72,0.063]
[1742045866316,59.17279426,135.73,135.72,0.063]
[1742045867010,40.5231454,135.73,135.72,0.063]
[1742045867218,20.23882226,135.73,135.72,0.063]
[1742045867429,20.23882226,135.74,135.72,0.063]
[1742045867794,40.23882226,135.74,135.72,0.063]
[1742045868007,20.23882226,135.74,135.72,0.063]
[1742045868216,40.23882226,135.74,135.72,0.063]
[1742045868622,20.23882226,135.75,135.72,0.063]
[1742045869001,20.23882226,135.74,135.72,0.063]
[1742045869797,20.23882226,135.73,135.72,0.063]
[1742045870398,0.14216157,135.76,135.72,0.063]
[1742045870399,20.23882226,135.76,135.72,0.063]
[1742045870914,20.23882226,135.75,135.72,0.063]
[1742045871715,0.14216157,135.78,135.72,0.063]
[1742045871898,20.23882226,135.76,135.72,0.063]
[1742045872299,20.23882226,135.77,135.72,20.30182226]
[1742045872500,20.23882226,135.78,135.73,20.23882226]
[1742045872814,20.23891806,135.79,135.74,20.23882226]
[1742045873200,20.23882226,135.78,135.73,26.58972226]
[1742045873396,20.23891806,135.79,135.74,20.23882226]
[1742045873819,20.23891806,135.79,135.75,7.3664]
[1742045874406,20.23891806,135.79,135.74,20.23882226]
[1742045874407,20.14216157,135.75,135.72,0.063]
[1742045874622,20.23882226,135.73,135.72,0.063]
[1742045875005,20.23882226,135.74,135.72,0.063]
[1742045875200,40.23882226,135.75,135.72,0.063]
[1742045878024,20.26882226,135.78,135.73,20.23882226]
[1742045878323,20.26882226,135.78,135.73,26.58972226]
[1742045878921,20.26882226,135.78,135.73,6.3509]
[1742045879225,20.26882226,135.78,135.74,6.5]
[1742045880130,27.63372226,135.78,135.74,6.5]
[1742045880425,20.23882226,135.76,135.74,6.5]
[1742045880728,20.23882226,135.76,135.72,8.225]
[1742045880905,20.23882226,135.75,135.72,8.225]
[1742045881830,20.23882226,135.76,135.72,8.225]
[1742045882423,20.23882226,135.76,135.72,15.593]
[1742045882620,0.03,135.78,135.75,20.23882226]
[1742045882811,0.03,135.78,135.77,20.23882226]
[1742045883003,0.03,135.78,135.77,6.52]
[1742045883407,0.03,135.78,135.77,26.75882226]
[1742045883626,0.03,135.78,135.77,28.27772226]
[1742045884423,0.03,135.78,135.77,35.64302226]
[1742045887010,9.58e-05,135.79,135.77,35.64302226]
[1742045887216,23.64758452,135.87,135.78,20.23882226]
[1742045887412,23.64758452,135.87,135.82,20.23882226]
[1742045887627,20.0,135.86,135.83,6.52]
[1742045887831,23.64758452,135.87,135.83,6.52]
[1742045888209,20.23882226,135.86,135.83,6.52]
[1742045889135,23.64758452,135.87,135.83,13.8821]
[1742045890632,23.64758452,135.87,135.83,6.52]
[1742045890815,3.40876226,135.87,135.83,34.12082226]
[1742045891415,3.40876226,135.87,135.84,21.75772226]
[1742045892029,3.40876226,135.87,135.85,7.361]
[1742045892617,18.933972,135.83,135.77,6.5]
[1742045892818,20.23882226,135.8,135.77,13.8653]
[1742045893125,18.933972,135.83,135.77,13.8653]
[1742045893126,20.23882226,135.82,135.77,52.51752226]
[1742045893325,20.0,135.82,135.79,20.23882226]
[1742045894140,20.0,135.82,135.78,20.23882226]
[1742045894515,20.23882226,135.83,135.78,20.23882226]
[1742045895026,20.23882226,135.84,135.79,20.23882226]
[1742045895225,3.40876226,135.87,135.81,20.23882226]
[1742045895226,20.23882226,135.86,135.81,20.23882226]
[1742045895541,23.93190766,135.87,135.82,26.79882226]
[1742045895719,20.23882226,135.86,135.82,6.56]
[1742045896036,23.93190766,135.87,135.83,7.3621]
[1742045897737,23.64758452,135.87,135.83,25.7674]
[1742045897920,3.40876226,135.87,135.83,46.00622226]
[1742045898637,3.43876226,135.87,135.83,46.00622226]
[1742045899037,3.43876226,135.87,135.83,47.58392226]
[1742045899226,3.43876226,135.87,135.84,20.23882226]
[1742045900232,3.43876226,135.87,135.83,47.58392226]
[1742045901017,3.43876226,135.87,135.83,27.3451]
[1742045901217,3.43876226,135.87,135.85,7.361]
[1742045902028,3.43876226,135.87,135.85,27.59982226]
[1742045904835,3.43876226,135.87,135.86,20.23882226]
[1742045905737,3.43876226,135.87,135.86,27.59932226]
[1742045906058,6.226e-05,135.87,135.86,27.59932226]
[1742045906387,0.03,135.92,135.88,1.5916]
[1742045906520,0.03,135.92,135.89,6.62]
[1742045906722,0.03,135.92,135.91,20.23882226]
[1742045907221,0.0001,135.92,135.91,28.49102226]
[1742045907420,0.03,135.93,135.91,35.11102226]
[1742045907421,0.0001,135.93,135.91,35.11102226]
[1742045907624,0.28432314,136.03,135.92,66.48449338]
[1742045907825,136.53761243,136.07,135.99,20.23882226]
[1742045908128,40.23882226,136.04,136.0,6.66]
[1742045908330,20.23882226,136.04,136.0,6.66]
[1742045909125,2.5661142,136.06,136.02,20.23882226]
[1742045909331,2.5661142,136.06,136.03,20.23882226]
[1742045909720,2.5661142,136.06,136.03,27.59012226]
[1742045910236,2.5661142,136.06,136.04,20.23882226]
[1742045910436,2.5661142,136.06,136.05,26.91882226]
[1742045910832,2.5661142,136.06,136.01,78.32286244]
[1742045911045,2.5661142,136.06,136.02,26.91882226]
[1742045911252,2.5661142,136.06,136.03,20.23882226]
[1742045911839,2.5661142,136.06,136.04,20.23882226]
[1742045912043,2.5961142,136.06,136.04,20.23882226]
[1742045912251,2.5961142,136.06,136.02,6.68]
[1742045912252,2.5961142,136.06,136.03,32.25168215]
[1742045912438,2.5961142,136.06,136.02,38.93168215]
[1742045913156,2.5961142,136.06,136.03,32.25168215]
[1742045914150,2.5961142,136.06,136.02,38.93168215]
[1742045914659,2.5961142,136.06,136.03,32.25168215]
[1742045915962,2.5961142,136.06,136.05,32.25168215]
[1742045916833,2.5961142,136.06,136.05,39.60188215]
[1742045917155,2.5961142,136.06,136.05,32.25168215]
[1742045917550,2.5961142,136.06,136.04,32.25168215]
[1742045918556,2.5961142,136.06,136.05,32.25168215]
[1742045919150,2.5961142,136.06,136.04,32.25168215]
[1742045919750,2.5961142,136.06,136.02,110.57454459]
[1742045919944,2.5961142,136.06,136.05,6.68]
[1742045922036,2.5961142,136.06,136.02,39.60298215]
[1742045922437,2.5961142,136.06,136.03,6.68]
[1742045922650,2.5961142,136.06,136.04,32.25168215]
[1742045922852,2.5961142,136.06,136.05,40.34788215]
[1742045923159,2.5961142,136.06,136.05,47.69808215]
[1742045923339,2.5961142,136.06,136.05,15.4464]
[1742045923534,2.5961142,136.06,136.02,32.25168215]
[1742045923739,2.5961142,136.06,136.03,6.7]
[1742045924134,2.5961142,136.06,136.04,32.25168215]
[1742045924759,2.5961142,136.06,136.05,32.25168215]
[1742045925361,2.5961142,136.06,136.05,39.60188215]
[1742045929371,2.5961142,136.06,136.05,32.25168215]
[1742045931258,1.42e-05,136.06,136.05,32.25168215]
[1742045931463,1.42e-05,136.06,136.05,39.60188215]
[1742045932071,1.42e-05,136.06,136.05,140.09332235]
[1742045932238,1.42e-05,136.06,136.05,144.50389345]
[1742045932443,1.42e-05,136.06,136.05,132.55424459]
[1742045932643,1.42e-05,136.06,136.05,54.23138215]
[1742045933067,1.42e-05,136.06,136.05,47.93448215]
[1742045933250,1.42e-05,136.06,136.05,14.0502]
[1742045933640,1.42e-05,136.06,136.04,39.60238215]
[1742045933846,1.42e-05,136.06,136.05,6.7]
[1742045934048,0.28432314,136.05,135.96,78.32286244]
[1742045934242,20.1782141,136.02,135.97,26.8982141]
[1742045935149,20.1782141,136.03,135.97,26.8982141]
[1742045935468,0.28432314,136.05,135.97,26.8982141]
[1742045935469,20.1782141,136.01,135.97,14.0745]
[1742045935970,20.1782141,136.02,135.97,34.2527141]
[1742045936974,20.1782141,136.03,135.97,34.2527141]
[1742045937864,20.1782141,136.05,135.99,20.1782141]
[1742045938366,20.1782141,136.04,135.99,20.1782141]
[1742045938947,20.1782141,136.04,135.98,20.1782141]
[1742045939343,20.1782141,136.03,135.99,7.3534]
[1742045939544,20.1782141,136.02,135.99,7.3534]
[1742045939774,20.1782141,136.03,135.99,7.3534]
[1742045940854,20.1782141,136.02,135.99,7.3534]
[1742045941075,20.1782141,136.03,135.99,7.3534]
[1742045941656,20.1782141,136.03,135.99,6.7]
[1742045941865,6.1541142,136.06,135.99,6.7]
[1742045942055,6.1541142,136.06,136.01,20.1782141]
[1742045942056,20.1782283,136.06,136.01,20.1782141]
[1742045943565,20.1782283,136.06,136.02,7.3518]
[1742045943767,1.42e-05,136.06,136.01,27.5304141]
[1742045943975,20.1782283,136.06,136.01,27.5304141]
[1742045945655,1.42e-05,136.06,136.02,20.1782141]
[1742045946263,27.5280283,136.06,136.01,20.1782141]
[1742045946457,1.42e-05,136.06,136.02,20.1782141]
[1742045946662,6.8492142,136.07,136.02,20.1782141]
[1742045946856,20.1782141,136.07,136.02,20.1782141]
[1742045947062,27.5269141,136.08,136.03,20.1782141]
[1742045947358,27.5269141,136.08,136.0,7.3527]
[1742045947570,27.5269141,136.08,136.03,20.1782141]
[1742045947781,0.03,136.06,136.03,20.1782141]
[1742045947970,0.03,136.06,136.02,27.5297141]
[1742045948280,0.03,136.06,136.03,20.1782141]
[1742045948874,0.03,136.06,136.03,27.5294141]
[1742045949757,0.03,136.06,136.03,7.3512]
[1742045950174,20.2082141,136.06,136.01,27.5306141]
[1742045951984,0.03,136.06,136.01,27.5306141]
[1742045952165,0.03,136.06,136.02,20.1782141]
[1742045952481,0.03,136.06,136.01,27.5306141]
[1742045952778,0.03,136.06,136.02,6.66]
[1742045952779,20.2082141,136.06,136.02,6.66]
[1742045953765,0.03,136.06,136.02,34.1898141]
[1742045953966,0.03,136.06,136.03,20.1782141]
[1742045954182,0.03,136.06,136.02,34.1898141]
[1742045955483,20.1782141,136.05,136.02,6.66]
[1742045955778,20.1782141,136.05,136.02,14.0118]
[1742045956875,20.1782141,136.04,136.02,6.66]
[1742045957878,20.1782141,136.03,136.02,6.66]
[1742045958789,0.03,136.06,136.02,112.51287654]
[1742045959091,26.40600549,136.12,136.05,20.1782141]
[1742045959290,26.40600549,136.12,136.09,20.1782141]
[1742045959474,26.40600549,136.12,136.1,6.78]
[1742045959870,9.92769495,136.12,136.1,6.78]
[1742045960072,9.92769495,136.12,136.11,20.1782141]
[1742045963300,20.1782141,136.15,136.12,7.3464]
[1742045963992,20.1782141,136.16,136.12,7.3464]
[1742045964207,20.1782141,136.15,136.12,7.3464]
[1742045966493,20.1782141,136.16,136.12,7.3464]
[1742045967096,20.1782141,136.15,136.12,7.3464]
[1742045967285,20.1782141,136.15,136.13,6.74]
[1742045967470,20.1782141,136.14,136.13,6.74]
[1742045967674,20.1782141,136.15,136.13,6.74]
[1742045968696,20.1782141,136.14,136.13,6.74]
[1742045969194,20.32037567,136.14,136.07,6.0633]
[1742045969399,20.1782141,136.12,136.07,26.2415141]
[1742045969586,7.3433,136.18,136.1,20.1782141]
[1742045969781,20.1782141,136.15,136.11,6.74]